bitfinex-derivatives/quotes_ETHF0:USTF0_20250912
["timestamp","ask_amount","ask_price","bid_price","bid_amount"]
[1757665927218,0.5172,4521.4,4521.3,32.1591]
[1757665927412,0.5172,4521.4,4521.3,32.3821]
[1757665931118,0.7274,4521.4,4521.3,0.4168]
[1757665931311,0.7274,4521.4,4521.1,3.2078]
[1757665931511,0.55638042,4521.2,4521.1,3.2078]
[1757665931713,0.87068042,4521.2,4521.1,3.6246]
[1757665931920,0.7274,4521.2,4521.1,3.6246]
[1757665933725,0.7274,4521.2,4521.1,3.9288848]
[1757665935226,0.3143,4521.2,4521.1,4.4449848]
[1757665935522,0.3143,4521.4,4521.3,0.7099]
[1757665935723,0.66048042,4521.4,4521.3,1.2371848]
[1757665936020,3.2078,4521.8,4521.6,0.7099]
[1757665936021,0.5172,4521.7,4521.6,0.7099]
[1757665936220,0.5172,4521.7,4521.6,1.0141848]
[1757665936421,0.7274,4521.7,4521.6,1.0141848]
[1757665936819,0.5172,4521.7,4521.6,1.0141848]
[1757665937214,0.7274,4521.7,4521.6,1.0141848]
[1757665940534,3.2078,4521.8,4521.7,0.7099]
[1757665940724,3.2078,4521.8,4521.7,1.0141848]
[1757665941127,3.5221,4521.8,4521.7,1.0141848]
[1757665941426,0.3143,4521.8,4521.7,1.0141848]
[1757665943126,0.87068042,4521.8,4521.7,0.3042848]
[1757665944926,0.87068042,4521.8,4521.7,0.30496398]
[1757665948230,1.46531566,4521.8,4521.7,0.30496398]
[1757665948431,1.46531566,4521.8,4521.7,1.02666398]
[1757665949029,1.46531566,4521.8,4521.7,1.02740528]
[1757665950224,0.87068042,4521.8,4521.7,1.02740528]
[1757665950534,0.3143,4521.8,4521.7,1.02740528]
[1757665950830,0.5131,4521.8,4521.7,1.02740528]
[1757665951020,0.7237,4521.8,4521.7,1.02740528]
[1757665951427,0.7237,4521.8,4521.7,1.02749483]
[1757665952329,0.7237,4521.8,4521.7,0.30579483]
[1757665952534,0.7237,4521.8,4521.7,1.02749483]
[1757665953728,0.5131,4521.8,4521.7,1.02749483]
[1757665954728,0.7237,4521.8,4521.7,1.02749483]
[1757665959141,1.31834071,4521.8,4521.7,1.02749483]
[1757665959831,1.31834071,4521.8,4521.7,1.02767422]
[1757665963539,1.46162113,4521.8,4521.7,0.30597422]
[1757665963745,0.4094,4521.4,4521.3,0.423]
[1757665963940,0.7272,4521.4,4521.3,0.423]
[1757665964242,0.7272,4521.4,4521.3,0.7383]
[1757665964543,0.7272,4521.4,4521.3,0.9447]
[1757665968751,0.3178,4521.4,4521.3,0.9447]
[1757665969050,0.5166,4521.4,4521.3,0.9447]
[1757665969237,0.1217,4522.0,4521.4,0.3153]
[1757665969443,0.5166,4522.0,4521.9,0.7217]
[1757665969639,1.44385872,4522.0,4521.9,0.4064]
[1757665969951,1.58713914,4522.0,4521.9,0.4064]
[1757665970446,1.58713914,4522.0,4521.9,0.7217]
[1757665972846,1.44385872,4522.0,4521.9,0.7217]
[1757665973049,3.2078,4522.9,4522.8,0.7217]
[1757665973259,0.5166,4522.9,4522.8,0.7217]
[1757665974643,0.7272,4522.9,4522.8,0.7217]
[1757665975845,0.3178,4523.7,4523.3,0.7217]
[1757665976051,0.3178,4523.5,4523.4,0.3153]
[1757665976251,0.5166,4523.5,4523.4,0.7217]
[1757665977058,0.7272,4523.5,4523.4,0.7217]
[1757665980664,0.5166,4523.5,4523.4,0.7217]
[1757665984166,0.1217,4524.5,4523.8,0.7057]
[1757665984469,0.8137,4525.0,4524.9,0.2103]
[1757665984861,0.95698042,4525.0,4524.9,0.2103]
[1757665985068,0.95698042,4525.0,4524.6,0.5131]
[1757665985069,0.65948042,4525.0,4524.6,0.5131]
[1757665985268,0.83528042,4524.7,4524.6,0.7234]
[1757665985471,0.83528042,4524.7,4524.6,0.9287]
[1757665985657,0.692,4524.7,4524.6,0.6386]
[1757665985962,0.692,4524.7,4524.6,0.223]
[1757665987666,0.692,4524.7,4524.5,0.223]
[1757665987870,0.83528042,4524.6,4524.5,0.223]
[1757665988260,0.692,4524.6,4524.5,0.223]
[1757665990273,0.1229,4524.5,4524.4,0.2103]
[1757665990479,0.8149,4524.5,4524.4,0.4333]
[1757665990665,0.8149,4524.5,4524.4,0.2103]
[1757665990865,0.5174,4524.0,4523.9,3.4181]
[1757665991065,0.8149,4524.0,4523.9,0.4333]
[1757665991378,0.8149,4524.0,4523.9,0.9287]
[1757665992770,0.692,4524.0,4523.9,0.9287]
[1757665993571,0.4995,4524.0,4523.9,0.9287]
[1757665994165,0.1229,4524.5,4523.9,0.6386]
[1757665994376,0.3249,4524.5,4524.4,0.7057]
[1757665994573,0.5174,4524.5,4524.4,0.7057]
[1757665994771,0.8149,4524.5,4524.4,0.7057]
[1757665994970,0.95818042,4524.5,4524.4,0.2103]
[1757665995167,0.95818042,4524.5,4524.0,0.2901]
[1757665995371,0.83528042,4524.1,4524.0,0.7057]
[1757665995871,0.692,4524.1,4524.0,0.9287]
[1757665996172,0.692,4524.1,4524.0,0.7057]
[1757665996374,0.4995,4524.1,4524.0,0.9287]
[1757665998872,0.692,4524.8,4524.7,0.7057]
[1757665999475,0.83528042,4524.8,4524.7,0.7057]
[1757665999683,0.692,4524.8,4524.7,0.7057]
[1757666000678,0.4995,4524.8,4524.7,1.1034]
[1757666001370,0.4995,4524.8,4524.7,0.7057]
[1757666002372,0.692,4524.8,4524.7,0.4156]
[1757666002677,0.692,4524.8,4524.7,0.9287]
[1757666006970,0.3945,4524.0,4523.9,3.4181]
[1757666007279,0.8149,4523.5,4523.4,3.4181]
[1757666007475,0.8149,4523.5,4523.4,3.6411]
[1757666007679,0.8149,4523.5,4523.4,3.9312]
[1757666008278,0.8149,4523.5,4523.4,3.6411]
[1757666009484,0.8149,4523.5,4523.4,0.4333]
[1757666010580,0.95818042,4523.5,4523.1,0.3037]
[1757666010795,0.95818042,4523.5,4522.8,0.2066]
[1757666010796,0.7148,4522.9,4522.8,0.2066]
[1757666010986,0.7148,4522.9,4522.8,0.4296]
[1757666012474,0.7148,4522.9,4522.8,0.937]
[1757666012676,0.1181,4523.0,4522.7,0.223]
[1757666012677,0.7148,4522.8,4522.7,0.223]
[1757666012878,0.7148,4522.3,4522.2,0.2066]
[1757666013179,0.7148,4522.3,4521.5,0.714]
[1757666013180,0.7148,4521.6,4521.5,0.714]
[1757666013382,0.7148,4521.6,4521.5,0.937]
[1757666016882,0.5164,4521.6,4521.5,0.937]
[1757666017286,0.1181,4522.0,4521.5,1.0517]
[1757666017485,0.14328042,4521.8,4521.7,0.4103]
[1757666017681,0.44888042,4521.8,4521.7,0.714]
[1757666017981,0.5164,4521.8,4521.7,0.714]
[1757666018790,0.7148,4521.8,4521.7,0.714]
[1757666020488,0.7148,4521.8,4521.7,0.937]
[1757666020687,0.85808042,4521.8,4521.7,0.937]
[1757666021588,0.85808042,4521.8,4521.7,0.2066]
[1757666021800,0.85808042,4521.8,4521.7,0.4296]
[1757666021993,0.85808042,4521.8,4521.7,0.937]
[1757666023992,0.85808042,4521.8,4521.7,0.4296]
[1757666024192,0.5273,4521.5,4521.4,0.2066]
[1757666024391,0.97618042,4521.5,4521.4,0.223]
[1757666024792,0.3056,4521.4,4521.2,3.2078]
[1757666024992,0.3056,4521.4,4520.4,0.3037]
[1757666024993,0.7148,4520.8,4520.4,0.3037]
[1757666025299,0.7148,4520.8,4520.2,3.2078]
[1757666025300,0.7148,4520.8,4520.5,0.223]
[1757666025682,0.55248042,4520.6,4520.5,0.223]
[1757666025888,0.85808042,4520.6,4520.5,0.223]
[1757666026091,0.1181,4520.5,4520.2,0.3037]
[1757666026399,0.1181,4520.5,4519.8,0.2066]
[1757666026400,0.7148,4519.9,4519.8,0.2066]
[1757666026594,0.7148,4519.9,4519.8,0.4296]
[1757666028701,0.7148,4519.9,4519.8,0.7333]
[1757666029901,0.7148,4519.9,4519.8,0.4296]
[1757666031798,0.7148,4519.9,4519.8,0.2066]
[1757666032000,0.7148,4519.9,4519.8,0.4296]
[1757666032203,0.7148,4519.9,4519.8,0.7333]
[1757666032502,0.7148,4519.9,4519.8,0.937]
[1757666037305,0.7148,4519.9,4519.8,0.4296]
[1757666038407,0.7148,4519.9,4519.8,0.9472]
[1757666038810,0.7148,4519.9,4519.8,1.34533]
[1757666039103,0.7148,4519.9,4519.8,0.9472]
[1757666040615,0.5164,4519.9,4519.8,0.9472]
[1757666040813,0.7154,4519.9,4519.8,0.9472]
[1757666041808,0.8348,4519.5,4519.4,1.0412]
[1757666042012,0.97808042,4519.5,4519.1,3.2078]
[1757666042208,0.3173,4519.4,4519.2,0.223]
[1757666042404,0.85428042,4519.2,4519.1,3.2078]
[1757666042601,0.85428042,4519.2,4519.1,3.4308]
[1757666042811,0.711,4519.2,4519.1,3.6362]
[1757666043010,0.711,4519.2,4519.1,0.223]
[1757666044306,0.711,4519.2,4519.1,0.4284]
[1757666044810,0.711,4519.2,4519.1,0.946]
[1757666045505,0.711,4519.2,4519.1,0.4284]
[1757666048105,0.711,4519.2,4519.1,0.7359]
[1757666048408,0.711,4519.2,4519.1,0.946]
[1757666048810,0.512,4519.2,4519.1,0.946]
[1757666049003,0.711,4519.2,4519.1,0.946]
[1757666051240,0.711,4519.2,4519.1,0.2054]
[1757666051415,0.711,4519.2,4519.1,0.946]
[1757666053418,1.29375515,4519.2,4519.1,0.6385]
[1757666054007,0.1238,4519.5,4519.2,0.3075]
[1757666054209,0.6358,4519.5,4519.4,0.4155]
[1757666054413,1.417998,4519.5,4519.4,0.723]
[1757666054718,1.56127842,4519.5,4519.4,0.723]
[1757666056118,1.23847842,4519.5,4519.4,0.723]
[1757666056317,1.095198,4519.5,4519.4,0.723]
[1757666056526,0.583198,4519.5,4519.4,0.723]
[1757666056921,1.095198,4519.5,4519.4,0.723]
[1757666057113,1.417998,4519.5,4519.4,0.723]
[1757666057815,1.417998,4519.5,4519.4,0.4155]
[1757666058021,1.417998,4519.5,4519.4,0.6385]
[1757666058221,0.8348,4519.5,4519.4,0.2054]
[1757666058415,0.8348,4519.5,4519.4,0.946]
[1757666059316,0.711,4519.5,4519.4,0.946]
[1757666059820,0.512,4519.5,4519.4,0.946]
[1757666060021,3.3316,4520.0,4519.4,0.6385]
[1757666060321,0.14328042,4519.6,4519.5,0.838]
[1757666060721,0.3173,4519.9,4519.5,0.838]
[1757666060919,0.3173,4519.8,4519.5,0.838]
[1757666061120,0.3173,4519.8,4519.7,0.4155]
[1757666061322,0.512,4520.1,4520.0,0.4155]
[1757666061622,0.512,4520.1,4520.0,0.723]
[1757666061818,0.85428042,4520.1,4520.0,0.723]
[1757666062319,0.3173,4520.1,4520.0,0.723]
[1757666062520,0.711,4520.1,4520.0,0.723]
[1757666062715,0.711,4520.1,4520.0,0.4155]
[1757666063022,0.711,4520.1,4520.0,0.6385]
[1757666063426,0.711,4520.1,4520.0,0.946]
[1757666064324,0.3173,4520.1,4520.0,0.946]
[1757666064520,0.1181,4520.5,4520.1,0.3075]
[1757666064830,0.5118,4520.5,4520.4,0.4155]
[1757666065226,0.97238042,4520.5,4520.4,0.4155]
[1757666066724,0.97238042,4520.5,4520.4,0.723]
[1757666067025,0.46058042,4520.5,4520.4,0.723]
[1757666067224,0.65528042,4520.5,4520.4,0.723]
[1757666067427,0.85428042,4520.5,4520.4,0.723]
[1757666067738,0.97808042,4520.5,4520.4,0.723]
[1757666068924,0.97808042,4520.5,4520.2,0.223]
[1757666069119,0.7118,4520.3,4519.9,3.5071]
[1757666069327,0.1238,4520.5,4520.0,0.223]
[1757666069328,0.4148,4520.1,4520.0,0.223]
[1757666069625,0.7118,4520.1,4520.0,0.4291]
[1757666070724,0.7118,4520.1,4520.0,0.9196]
[1757666070924,0.1238,4520.5,4520.0,0.7312]
[1757666071130,0.14328042,4520.2,4520.1,0.6966]
[1757666071323,0.44028042,4520.2,4520.1,0.6966]
[1757666071627,0.5052,4520.2,4520.1,0.6966]
[1757666072726,0.297,4520.4,4520.3,0.3973]
[1757666072930,0.297,4520.7,4520.6,0.3973]
[1757666073228,0.64848042,4520.7,4520.6,0.9196]
[1757666073428,0.5052,4520.7,4520.6,0.9196]
[1757666076032,0.297,4521.4,4520.9,0.3973]
[1757666076232,0.297,4521.4,4520.5,3.3228]
[1757666076233,0.14328042,4521.1,4521.0,0.9196]
[1757666076530,0.14328042,4521.3,4521.0,0.6203]
[1757666076725,0.5052,4521.2,4521.1,0.6966]
[1757666077131,0.7118,4521.2,4521.0,0.223]
[1757666077326,0.85508042,4521.2,4521.0,0.223]
[1757666077822,0.7118,4520.6,4520.5,3.4139]
[1757666078028,0.7118,4520.6,4520.5,3.6369]
[1757666078229,0.7118,4520.6,4520.5,4.1274]
[1757666079832,0.7118,4520.6,4520.5,3.8281]
[1757666080422,0.7118,4520.6,4520.5,4.1274]
[1757666080921,0.7118,4520.6,4520.5,3.8281]
[1757666081327,0.7118,4520.6,4520.5,4.1274]
[1757666081626,0.7118,4520.6,4520.5,3.8281]
[1757666083233,0.7118,4520.6,4520.5,3.6051]
[1757666083429,0.7118,4520.6,4520.5,3.6369]
[1757666083631,0.7118,4520.1,4520.0,0.2061]
[1757666083928,0.85508042,4520.1,4520.0,0.4291]
[1757666084137,0.7118,4520.1,4520.0,0.4291]
[1757666085131,0.4151,4520.0,4519.4,35.3741]
[1757666085336,0.7118,4519.6,4519.5,0.4291]
[1757666085537,0.7118,4519.6,4519.4,35.3741]
[1757666085538,0.1181,4519.5,4519.4,35.0748]
[1757666085729,0.4151,4519.5,4519.4,35.2978]
[1757666086326,0.4151,4519.5,4519.4,35.5971]
[1757666089333,0.297,4519.5,4519.4,35.5971]
[1757666091037,0.8299,4520.0,4519.9,0.6966]
[1757666091238,0.8299,4520.0,4519.9,0.47701958]
[1757666091642,0.8299,4520.0,4519.9,0.28581958]
[1757666096750,0.8299,4520.0,4519.9,0.223]
[1757666099640,0.8167,4519.5,4519.4,3.4166]
[1757666099962,0.8167,4519.5,4519.4,3.6396]
[1757666100344,0.6209,4519.0,4518.9,3.6271]
[1757666100848,0.6209,4519.0,4518.9,4.1469]
[1757666101140,0.8167,4519.0,4518.9,4.1469]
[1757666101347,0.519,4519.0,4518.9,0.223]
[1757666101640,0.8167,4519.0,4518.4,35.0738]
[1757666101839,0.3986,4518.6,4518.5,0.4318]
[1757666102140,0.6963,4518.6,4518.5,0.4318]
[1757666102536,0.6963,4518.6,4518.4,3.2078]
[1757666102742,0.1204,4518.0,4517.8,3.5046]
[1757666102942,0.8167,4518.0,4517.9,0.4318]
[1757666103242,0.8167,4518.0,4517.9,1.4791]
[1757666103445,0.6209,4518.0,4517.9,1.7759]
[1757666106041,0.1204,4518.5,4517.9,2.17419]
[1757666106263,0.2977,4518.5,4518.4,0.7161]
[1757666106443,0.2977,4518.5,4518.4,0.9391]
[1757666106841,0.8167,4519.0,4518.9,0.4193]
[1757666107041,0.8167,4519.0,4518.9,0.7161]
[1757666107345,0.6209,4519.0,4518.9,0.7161]
[1757666108443,0.8167,4519.0,4518.9,0.7161]
[1757666108937,0.8167,4519.0,4518.9,0.4193]
[1757666109748,3.7083,4519.8,4519.1,0.2968]
[1757666109944,3.7083,4519.8,4519.7,0.7161]
[1757666110842,3.9041,4519.8,4519.7,0.7161]
[1757666111847,0.6963,4519.8,4519.7,0.7161]
[1757666115848,3.7083,4520.3,4520.2,0.7161]
[1757666116055,3.2078,4520.9,4520.2,0.9391]
[1757666116248,3.2078,4520.9,4520.2,0.223]
[1757666116555,0.6963,4520.8,4520.7,0.4193]
[1757666116743,0.6963,4520.8,4520.7,0.6423]
[1757666117644,0.5005,4520.8,4520.7,0.9391]
[1757666121354,0.6963,4520.8,4520.7,0.223]
[1757666121554,0.6963,4520.8,4520.7,0.4318]
[1757666121747,0.6963,4520.8,4520.7,0.6423]
[1757666122255,0.5005,4521.3,4521.2,0.7161]
[1757666122455,0.5005,4521.3,4521.2,0.9391]
[1757666123358,0.6963,4521.3,4521.2,1.4788]
[1757666123549,0.5005,4521.3,4521.2,1.7756]
[1757666123748,0.6963,4521.3,4521.2,1.7756]
[1757666124054,0.6963,4521.3,4521.2,1.4788]
[1757666125752,0.6963,4521.3,4521.2,1.7756]
[1757666126553,0.1204,4522.0,4521.2,1.4788]
[1757666126753,0.5005,4521.4,4521.3,0.7161]
[1757666128366,0.6963,4521.4,4521.3,0.7161]
[1757666128655,0.2906,4521.3,4521.2,0.8365]
[1757666128851,0.6866,4521.3,4521.2,1.2698]
[1757666129860,0.6866,4521.3,4521.2,0.8365]
[1757666130062,0.6866,4521.3,4521.2,1.0595]
[1757666130266,0.6866,4521.3,4521.2,1.2698]
[1757666130484,0.6866,4521.3,4521.2,1.4696]
[1757666131162,0.6866,4521.3,4521.2,1.0595]
[1757666131758,0.6866,4521.3,4521.2,1.2698]
[1757666132662,0.6866,4521.3,4521.2,1.4696]
[1757666132963,0.2906,4521.3,4521.2,1.7607]
[1757666136265,0.4819,4521.3,4521.2,1.7607]
[1757666137454,0.2906,4521.3,4521.2,1.7607]
[1757666138270,0.4819,4521.3,4521.2,1.7607]
[1757666138662,0.4819,4521.9,4521.8,0.4909]
[1757666138861,3.7242,4522.5,4522.4,0.2103]
[1757666139063,3.94533,4522.5,4522.4,0.2103]
[1757666139264,0.2906,4522.4,4522.3,0.223]
[1757666139467,0.6866,4522.4,4522.3,0.223]
[1757666140369,0.6866,4522.4,4522.3,0.4333]
[1757666141661,0.6866,4522.4,4521.6,0.2911]
[1757666141866,0.6866,4521.7,4521.6,0.4101]
[1757666142375,0.6866,4521.7,4521.6,0.9242]
[1757666147703,0.1913,4522.0,4521.9,0.7012]
[1757666147871,3.3282,4522.5,4522.0,0.2911]
[1757666148200,0.1913,4522.1,4522.0,0.7012]
[1757666148476,0.2906,4522.1,4522.0,0.7012]
[1757666149366,0.4819,4522.1,4522.0,0.7012]
[1757666151373,0.6866,4522.1,4522.0,0.7012]
[1757666151674,0.6866,4522.1,4522.0,0.9242]
[1757666153669,0.4819,4522.1,4522.0,0.9242]
[1757666154273,0.1204,4522.5,4522.4,0.2103]
[1757666154477,0.3117,4522.5,4522.4,0.9242]
[1757666154672,0.5164,4522.5,4522.4,0.9242]
[1757666154873,0.807,4522.5,4522.4,0.9242]
[1757666155178,0.807,4522.5,4522.4,0.7012]
[1757666155380,0.2906,4522.5,4522.4,0.9242]
[1757666155579,0.2906,4522.9,4522.8,0.7012]
[1757666155779,0.6866,4522.9,4522.8,0.9242]
[1757666155981,0.6866,4522.9,4522.8,0.6331]
[1757666156486,0.1176,4522.5,4522.2,0.4101]
[1757666156682,0.6866,4522.3,4522.2,0.4101]
[1757666156882,0.6866,4522.3,4522.2,0.6331]
[1757666157081,0.6866,4522.3,4522.2,0.9242]
[1757666160183,0.4819,4522.3,4522.2,0.9242]
[1757666160679,0.4914,4522.9,4522.8,0.696]
[1757666160880,0.683,4522.9,4522.8,0.4171]
[1757666162581,0.2926,4522.8,4522.5,3.2078]
[1757666162784,0.3904,4522.7,4522.6,0.223]
[1757666162980,0.683,4522.7,4522.6,0.6276]
[1757666163286,0.683,4522.7,4522.6,0.919]
[1757666163778,0.683,4522.7,4522.6,0.6276]
[1757666164283,0.2926,4522.7,4522.6,0.919]
[1757666166689,0.4914,4522.7,4522.6,0.919]
[1757666167089,0.683,4522.7,4522.6,0.6276]
[1757666167584,0.683,4522.7,4522.6,0.4171]
[1757666169487,0.683,4522.7,4522.6,0.919]
[1757666170188,0.4914,4522.7,4522.6,0.919]
[1757666170588,0.2926,4522.7,4522.6,0.919]
[1757666171391,0.4914,4522.7,4522.6,0.919]
[1757666172291,0.2926,4522.7,4522.6,0.919]
[1757666172793,0.4914,4522.7,4522.6,0.919]
[1757666175188,0.683,4522.7,4522.6,0.919]
[1757666177491,0.1176,4523.5,4522.7,0.2914]
[1757666177695,0.90409,4523.4,4523.3,0.1941]
[1757666177990,0.90409,4523.4,4523.3,0.4171]
[1757666178186,0.683,4523.4,4523.3,0.223]
[1757666178385,0.683,4523.4,4523.3,0.919]
[1757666179595,0.683,4523.4,4523.3,0.6276]
[1757666182404,0.683,4523.4,4523.3,0.223]
[1757666183705,0.683,4523.4,4523.3,0.4171]
[1757666184098,0.683,4523.4,4523.3,0.223]
[1757666185903,0.683,4523.4,4523.3,1.0598]
[1757666186106,4.90408,4523.4,4523.3,0.8368]
[1757666186705,4.683,4523.4,4523.3,0.8368]
[1757666190304,5.24220101,4523.4,4523.3,0.1996]
[1757666190507,5.24220101,4523.4,4522.9,0.223]
[1757666190804,0.683,4523.4,4522.9,0.223]
[1757666192304,0.3904,4523.4,4522.9,0.5248]
[1757666192506,0.4042,4523.0,4522.9,0.5248]
[1757666192708,0.7216,4523.0,4522.9,0.5248]
[1757666193007,0.3174,4522.9,4522.0,0.124]
[1757666193212,0.7216,4522.2,4522.1,0.9264]
[1757666193415,0.7216,4522.2,4521.4,5.97506189]
[1757666193416,0.4042,4522.2,4521.8,0.3018]
[1757666193613,0.7216,4521.6,4521.5,0.3018]
[1757666195115,0.3174,4521.5,4521.4,3.2078]
[1757666195314,0.7216,4521.5,4521.4,3.5096]
[1757666196712,0.7216,4521.5,4521.4,3.7104]
[1757666197208,0.7216,4521.5,4521.4,3.5096]
[1757666197409,0.8392,4521.5,4521.1,0.3018]
[1757666198013,0.8392,4521.5,4521.0,0.1998]
[1757666198212,0.8392,4521.5,4521.1,0.3018]
[1757666198817,0.8392,4521.5,4521.2,0.3018]
[1757666200921,0.1943,4521.4,4521.3,0.5026]
[1757666201115,0.1943,4521.4,4521.3,0.7034]
[1757666201516,0.7216,4521.4,4521.3,0.7034]
[1757666201821,0.4042,4521.4,4521.3,0.7034]
[1757666202339,3.2078,4521.7,4521.5,0.124]
[1757666202521,3.4021,4522.2,4522.1,0.4016]
[1757666202717,3.4021,4522.2,4522.1,0.7034]
[1757666203918,3.612,4522.2,4522.1,0.7034]
[1757666204118,3.9294,4522.2,4522.1,0.7034]
[1757666205223,3.612,4522.2,4522.1,0.7034]
[1757666205615,3.4021,4522.2,4522.1,0.7034]
[1757666205815,0.1943,4522.6,4522.5,0.8274]
[1757666206017,0.4042,4522.6,4522.5,0.8274]
[1757666206217,0.7216,4522.6,4522.5,0.8274]
[1757666207023,0.7216,4521.9,4521.8,0.5026]
[1757666209229,0.4042,4521.9,4521.8,0.7034]
[1757666209923,0.1943,4521.9,4521.8,0.7034]
[1757666210124,3.2078,4522.2,4522.0,0.124]
[1757666210322,3.4021,4522.2,4522.1,0.7034]
[1757666210523,3.9294,4522.2,4522.1,0.7034]
[1757666211222,3.612,4522.2,4522.1,0.7034]
[1757666213020,3.4021,4522.2,4522.1,0.7034]
[1757666218631,3.612,4522.2,4522.1,0.7034]
[1757666220734,3.9107,4522.2,4522.1,0.3018]
[1757666220937,3.9107,4522.2,4522.1,0.5038]
[1757666224536,0.1943,4522.2,4522.1,0.7159]
[1757666224737,0.4112,4522.6,4522.5,0.5339]
[1757666224937,0.4112,4522.6,4522.5,0.8458]
[1757666225636,3.2078,4523.2,4522.5,0.8458]
[1757666225832,3.2078,4523.2,4523.1,0.202]
[1757666226138,3.9177,4523.2,4523.1,0.5139]
[1757666226633,0.203,4523.2,4523.1,0.4141]
[1757666226839,0.203,4523.2,4523.1,0.726]
[1757666227135,0.4112,4523.2,4523.1,0.726]
[1757666227331,0.7099,4523.2,4523.1,0.726]
[1757666228639,0.4112,4523.2,4523.1,0.726]
[1757666229238,0.203,4523.2,4523.1,0.726]
[1757666230239,0.2987,4523.1,4522.8,0.3119]
[1757666230437,0.7099,4523.1,4523.0,0.223]
[1757666230636,0.7099,4523.1,4523.0,0.5349]
[1757666231241,0.7099,4523.1,4523.0,0.223]
[1757666232130,0.7099,4523.1,4523.0,0.5349]
[1757666232341,0.7099,4523.1,4523.0,0.7369]
[1757666233850,0.7099,4523.1,4523.0,1.0688]
[1757666234138,0.4112,4523.1,4523.0,1.0688]
[1757666234634,3.9177,4523.7,4523.6,0.202]
[1757666234838,3.9177,4523.7,4523.6,0.5139]
[1757666235742,3.9177,4523.7,4523.4,0.2002]
[1757666236044,3.9177,4523.7,4523.6,0.3119]
[1757666238443,3.9177,4523.7,4523.6,0.5139]
[1757666238648,3.619,4523.7,4523.6,0.726]
[1757666239449,3.9177,4523.7,4523.4,0.2002]
[1757666240145,3.2078,4523.7,4523.4,0.5121]
[1757666240348,0.7099,4523.5,4523.4,0.5121]
[1757666241746,0.7099,4523.5,4523.4,0.2002]
[1757666243351,5.49250215,4523.5,4522.6,0.3119]
[1757666243648,0.5182,4522.7,4522.6,0.3119]
[1757666245352,0.5182,4522.2,4522.1,0.202]
[1757666246049,0.5182,4522.2,4522.1,0.5139]
[1757666246847,0.3948,4522.2,4522.1,0.5139]
[1757666248350,0.5184,4522.2,4522.1,0.3119]
[1757666248552,0.5184,4522.2,4521.6,0.3182]
[1757666248553,0.3938,4521.7,4521.6,0.3182]
[1757666248748,3.7252,4521.7,4521.6,0.5181]
[1757666249055,3.6016,4521.7,4521.6,0.5181]
[1757666249259,3.6016,4521.7,4521.6,0.7195]
[1757666250054,3.7252,4521.7,4521.6,0.5181]
[1757666250952,3.6016,4521.7,4521.6,0.7195]
[1757666252858,3.2078,4521.7,4521.6,0.7195]
[1757666254050,3.4056,4522.2,4522.1,0.7195]
[1757666255367,3.6016,4522.2,4522.1,0.7195]
[1757666255562,3.7252,4522.2,4522.1,0.3182]
[1757666256660,3.7252,4522.2,4522.1,0.5181]
[1757666256858,3.6016,4522.2,4522.1,0.5181]
[1757666257162,3.2078,4522.2,4522.1,0.7195]
[1757666257366,0.1978,4522.6,4522.5,0.8462]
[1757666257663,0.3938,4522.6,4522.5,0.8462]
[1757666261568,3.2078,4522.8,4522.7,0.4013]
[1757666261875,3.2078,4522.8,4522.7,0.7195]
[1757666263570,0.17677203,4523.9,4523.6,0.5181]
[1757666263571,3.6016,4523.7,4523.6,0.5181]
[1757666264174,3.6016,4523.7,4523.6,0.7195]
[1757666267475,3.7252,4523.7,4523.6,0.7195]
[1757666267979,3.7252,4523.7,4523.6,0.5181]
[1757666269173,3.6016,4523.7,4523.6,0.5181]
[1757666270573,3.7254,4523.7,4523.6,0.3182]
[1757666270874,0.3941,4523.2,4523.1,0.5181]
[1757666271274,0.3941,4523.2,4523.1,0.7195]
[1757666279287,0.1981,4523.2,4523.1,0.7195]
[1757666279578,0.223,4523.5,4523.2,0.2869]
[1757666279780,0.1977,4523.3,4523.2,0.6824]
[1757666281288,0.1977,4523.3,4522.6,0.223]
[1757666281289,0.3954,4523.3,4522.6,0.223]
[1757666281577,0.3954,4522.8,4522.7,0.6824]
[1757666283379,0.3954,4522.8,4522.7,0.4854]
[1757666283584,0.3954,4522.8,4522.7,0.6824]
[1757666285980,3.6285,4523.1,4523.0,0.806]
[1757666286181,3.4055,4523.1,4523.0,0.806]
[1757666287079,3.6032,4523.1,4523.0,0.806]
[1757666287385,3.7267,4523.1,4523.0,0.4105]
[1757666288078,3.7267,4523.1,4522.6,0.2869]
[1757666288283,0.5189,4522.7,4522.6,0.4854]
[1757666288473,0.5189,4522.7,4522.6,0.2869]
[1757666288672,0.3954,4522.2,4522.1,0.2869]
[1757666288876,0.3954,4522.2,4522.1,0.4854]
[1757666289181,0.5189,4522.2,4522.1,0.4854]
[1757666290687,0.3954,4522.2,4522.1,0.4854]
[1757666290987,0.3954,4522.2,4522.1,0.6824]
[1757666293187,0.5189,4522.2,4522.1,0.2869]
[1757666294986,0.3954,4522.2,4522.1,0.4854]
[1757666295690,0.3954,4522.2,4522.1,0.6824]
[1757666296195,0.223,4522.2,4522.1,0.6824]
[1757666311191,0.78771256,4522.2,4522.1,0.6824]
[1757666311394,3.2078,4522.4,4522.1,0.3955]